Cogmind - Beta 17 @@@ ROGUE MODE // 2026.08.19 @ 15:09:28 Player: bm-y65 Result: Self-destructed Performance ------------- Evolutions (3) 1500 Regions Visited (7) 1400 Robots Destroyed (106) 530 Value Destroyed (4198) 4198 Prototype IDs (2) 40 Alien Tech Used (0) 0 Bonus (2105) 2105 TOTAL SCORE: 9773 Bonus ------- High Alert Combat Kills 547 Follower Combat Kills 158 Entered Garrisons 400 Used RIF Installer 1000 Cogmind --------- Core Integrity 682/700 Matter 280/300 Energy 290/290 System Corruption 0% Temperature Cool (0) Movement Treading (160) Location -7/Factory Parts ------- > --- POWER (1) -------- Improved Deuterium Engine > --- PROPULSION (4) --- Light Treads Light Treads Light Treads Light Treads > --- UTILITY (5) ------ Improved Heat Sink Large Storage Unit Improved Sensor Array Improved Signal Interpreter Improved Medium Armor Plating > --- WEAPON (3) ------- Particle Gun Heavy Assault Rifle Heavy Assault Rifle > --- INVENTORY (15) --- Improved Deuterium Engine Light Treads Light Treads Light Treads Improved Medium Treads Improved Heat Sink Enhanced Optical Array Transmission Jammer Improved Medium Armor Plating Improved Medium Armor Plating Relay Coupler [NC] (28) Heavy Assault Rifle Flak Gun Mini Assault Cannon Long-range Missile Launcher Peak State ------------ > --- POWER ------------ Improved Deuterium Engine > --- PROPULSION ------- Light Treads Light Treads Light Treads Light Treads > --- UTILITY ---------- Improved Heat Sink Large Storage Unit Improved Sensor Array Improved Signal Interpreter Improved Medium Armor Plating > --- WEAPON ----------- Heavy Assault Rifle Heavy Assault Rifle Mini Assault Cannon > --- INVENTORY -------- Improved Deuterium Engine Light Treads Light Treads Light Treads Improved Medium Treads Improved Heat Sink Enhanced Optical Array Transmission Jammer Transmission Jammer Improved Medium Armor Plating Improved Medium Armor Plating Relay Coupler [NC] Heavy Assault Rifle Flak Gun Long-range Missile Launcher [Rating: 35] Favorites ----------- Power Light Nuclear Core Engine Ion Engine Power Core Light Nuclear Core Propulsion Light Treads Treads Light Treads Wheel Wheel Utility Improved Heat Sink Device Improved Heat Sink Storage Large Storage Unit Processor Improved Signal Interpreter Protection Hardened Medium Armor Plating Weapon Heavy Particle Gun Energy Gun Heavy Particle Gun Ballistic Gun Subdweller Machine Gun Ballistic Cannon Mini Assault Cannon Launcher Long-range Missile Launcher Special Weapon Mining Laser Build | -11 -10 -10 -8 -8 -8 -8 -7 ------- Run | Yrd Mat Sub Mat Gar Mat Gar Fac Slots Evolved 6 | . . . 4 . . . 2 Power . | . . . . . . . . Propulsion 2 | . . . 1 . . . 1 Utility 3 | . . . 2 . . . 1 Weapon 1 | . . . 1 . . . . Parts Attached 77 | 7 10 8 7 19 . 18 8 Power 11 | 1 . 3 1 3 . 2 1 Engine 4 | 1 . 2 . . . . 1 Core 7 | . . 1 1 3 . 2 . Reactor . | . . . . . . . . Propulsion 26 | 2 2 3 1 8 . 8 2 Treads 23 | 1 . 3 1 8 . 8 2 Leg . | . . . . . . . . Wheel 3 | 1 2 . . . . . . Hover . | . . . . . . . . Flight . | . . . . . . . . Utility 20 | 2 3 . 3 5 . 4 3 Device 10 | 1 . . 2 4 . 2 1 Storage 3 | 1 2 . . . . . . Processor 1 | . . . . . . . 1 Hackware . | . . . . . . . . Protection 6 | . 1 . 1 1 . 2 1 Artifact . | . . . . . . . . Weapon 20 | 2 5 2 2 3 . 4 2 Energy Gun 11 | . 4 . 2 2 . 3 . Energy Cannon . | . . . . . . . . Ballistic Gun 6 | 2 . 2 . . . 1 1 Ballistic Cannon 1 | . . . . . . . 1 Launcher 1 | . . . . 1 . . . Special Weapon 1 | . 1 . . . . . . Impact Weapon . | . . . . . . . . Slashing Weapon . | . . . . . . . . Piercing Weapon . | . . . . . . . . Special Melee Weapon . | . . . . . . . . Unidentified Prototypes 2 | . . . 1 . . . 1 Corrupted Parts 4 | . . 4 . . . . . System Corruption 9 | . . 9 . . . . . Parts Lost 31 | . 3 6 4 7 . 11 . Power 5 | . . 2 . 1 . 2 . Propulsion 11 | . 1 2 2 4 . 2 . Utility 4 | . . . 1 . . 3 . Weapon 11 | . 2 2 1 2 . 4 . Highest Loss Streak 3 | . 1 3 3 3 . 3 . To Critical Strikes . | . . . . . . . . Average Backups 13 | 4 10 13 14 14 15 14 14 Power 1 | . 1 2 2 2 1 1 1 Propulsion 3 | 2 3 2 1 2 5 4 4 Utility 4 | . 2 4 4 4 6 5 5 Weapon 3 | . 3 5 5 4 3 3 3 Tool/Special . | . . . . . . . . Unused Backups 37 | . 10 . 4 5 . 2 16 Power 5 | . 2 . 1 . . . 2 Propulsion 6 | . 3 . . . . . 3 Utility 14 | . 2 . 2 1 . 1 8 Weapon 12 | . 3 . 1 4 . 1 3 Tool/Special . | . . . . . . . . Average Slot Usage (%) 99 | . 99 98 96 99 100 99 98 Engine 5 | . 14 13 . . . . 3 Core 5 | . . . 8 8 9 8 3 Treads 21 | . 14 14 17 23 27 26 29 Wheel 6 | . 13 13 9 2 . . . Device 14 | . 11 8 13 18 18 18 15 Storage 10 | . 14 14 9 9 9 9 7 Protection 7 | . 2 6 10 9 9 9 7 Energy Gun 21 | . 25 17 10 21 27 24 7 Ballistic Gun 5 | . 1 10 15 5 . 1 14 Peak Build Rating 35 | 7 12 13 28 32 32 32 35 Average Rating 22 | 5 10 10 24 29 31 29 30 On Entrance 18 | . 7 11 12 28 31 32 23 Avg Prop Armor Cover (%) 11 | 12 10 10 13 13 . . . Naked Turns . | . . . . . . . . Heaviest Build 50 | 14 36 38 50 46 44 44 49 Greatest Support 80 | 10 20 20 16 70 60 60 80 Greatest Overweight (x) 3 | 1 3 3 3 2 . . . Average Overweight (x) 1 | . 2 1 2 . . . . Largest Inventory Capacity 15 | 8 15 15 15 15 15 15 15 Average Capacity 14 | 7 11 15 15 15 15 15 15 Most Carried 15 | 8 15 15 15 15 15 15 15 Average Carried 13 | 4 10 13 14 14 14 14 14 Final Capacity 15 | 8 15 15 15 15 15 15 15 Final Carried 15 | 8 15 13 14 15 15 15 15 Class Distribution -------------------- 55% | Scavenger-Tank 35% | Mutant 5% | Scavenger-Skirmisher Dominant Class ---------------- Mutant | -10/Materials Mutant | -10/Subcaves Scavenger-Tank | -8/Materials Scavenger-Tank | -8/Garrison Scavenger-Tank | -8/Materials Scavenger-Tank | -8/Garrison Scavenger-Skirmisher | -7/Factory Resources | -11 -10 -10 -8 -8 -8 -8 -7 ----------- Run | Yrd Mat Sub Mat Gar Mat Gar Fac Matter Collected 1614 | 238 185 120 313 353 . 301 104 Remotely . | . . . . . . . . Salvage Created 3763 | 12 928 192 732 888 . 828 183 Parts 233 | 5 61 24 25 66 . 44 8 Haulers Intercepted 2 | . 1 . 1 . . . . Recyclers Shooed 2 | 1 . . 1 . . . . Parts Field Recycled . | . . . . . . . . Retrieved Matter . | . . . . . . . . Parts Self-Destructed 5 | . . 5 . . . . . Prevented . | . . . . . . . . Parts Restored . | . . . . . . . . Kills | -11 -10 -10 -8 -8 -8 -8 -7 ------- Run | Yrd Mat Sub Mat Gar Mat Gar Fac Combat Hostiles Destroyed 91 | . 19 7 12 28 . 24 1 Guns 82 | . 18 6 12 25 . 20 1 AOE 7 | . 1 1 . 3 . 2 . Classes Destroyed 16 | 1 7 1 4 2 . 1 . Worker 4 | . 1 . 2 . . . 1 Builder 1 | . 1 . . . . . . Tunneler 2 | 1 1 . . . . . . Hauler 2 | . 1 . 1 . . . . Recycler 2 | . . . 1 . . . 1 Mechanic 1 | . . . 1 . . . . Operator 1 | . 1 . . . . . . Watcher 2 | . 2 . . . . . . Swarmer 24 | . 3 2 . 10 . 9 . Cutter 4 | . . . . 4 . . . Grunt 34 | . 16 . 9 4 . 5 . Brawler 3 | . . . 1 2 . . . Duelist 2 | . . . 2 . . . . Sentry 16 | . . . . 8 . 7 1 Programmer 3 | . . . . . . 3 . Subdweller 5 | . . 5 . . . . . Best Kill Streak 7 | 1 5 2 7 6 . 6 2 Combat Bots Only 6 | . 5 2 5 6 . 6 1 Max Kills in Single Turn 2 | 1 2 2 2 2 . 2 2 Gunslinging 1 | . 1 . 1 1 . 1 . Exploded 2 | . 1 1 . 2 . 1 . Melee . | . . . . . . . . Uniques/NPCs Destroyed . | . . . . . . . . Combat | -11 -10 -10 -8 -8 -8 -8 -7 -------- Run | Yrd Mat Sub Mat Gar Mat Gar Fac Hostile Shots Fired 501 | . 49 45 47 146 . 187 27 Missed 134 | . 12 10 13 38 . 53 8 Hits 367 | . 37 35 34 108 . 134 19 Melee 9 | . . . 5 4 . . . Projectile 358 | . 37 35 29 104 . 134 19 AOE 4 | . . . . 4 . . . Critical Strikes 19 | . 2 1 5 6 . 5 . Damage Taken 5356 | . 566 665 606 1460 . 1914 145 Core 750 | . 88 127 65 255 . 197 18 Absorbed by Shields . | . . . . . . . . Core Remaining (%) 40 | 100 . 14 . . . 6 . Volleys Fired 275 | 2 63 27 43 67 1 68 4 Largest 3 | 2 2 2 3 3 3 3 3 Hottest 186 | 40 100 90 140 165 165 186 111 Shots Fired 654 | 4 107 53 129 176 3 170 12 Gun 630 | 4 89 53 129 173 3 167 12 Cannon . | . . . . . . . . Launcher 6 | . . . . 3 . 3 . Special 18 | . 18 . . . . . . Kinetic 146 | 4 . 33 67 25 . 9 8 Thermal 393 | . 18 . 62 148 3 158 4 Explosive 6 | . . . . 3 . 3 . Electromagnetic 109 | . 89 20 . . . . . Robot Hit Streak 19 | 3 13 14 19 11 . 9 11 Robot Miss Streak 6 | . 4 3 5 6 . 3 . Penetration Max . | . . . . . . . . Secondary Targets 20 | . 3 2 2 6 . 7 . Max Gunslinging Chain 1 | . 1 1 1 1 . 1 . Shots Hit Robots 424 | 3 76 45 82 103 . 106 9 Core Hits 184 | 1 51 15 30 39 . 43 5 Critical Kills . | . . . . . . . . Critical Parts Destroyed 1 | . . . 1 . . . . Critical Strikes 12 | . . . 2 1 . 9 . Burn 11 | . . . 1 1 . 9 . Destroy 1 | . . . 1 . . . . Melee Attacks . | . . . . . . . . Impact . | . . . . . . . . Slashing . | . . . . . . . . Piercing . | . . . . . . . . Sneak Attacks . | . . . . . . . . Combat Hostiles . | . . . . . . . . Follow-up Attacks . | . . . . . . . . Damage Inflicted 8641 | 35 1390 757 1715 2312 . 2277 155 Guns 7585 | 35 1099 733 1715 1948 . 1900 155 Cannons . | . . . . . . . . Explosions 1056 | . 291 24 . 364 . 377 . Melee . | . . . . . . . . Ramming . | . . . . . . . . Kinetic 1918 | 35 . 508 881 284 . 113 97 Thermal 4658 | . 291 24 834 1664 . 1787 58 Explosive 741 | . . . . 364 . 377 . Electromagnetic 1324 | . 1099 225 . . . . . Impact . | . . . . . . . . Slashing . | . . . . . . . . Piercing . | . . . . . . . . Highest Corruption 9 | . . 9 . . . 4 . Average Corruption 3 | . . 1 . . . 3 . Corruption Purged . | . . . . . . . . Corruption Blocked . | . . . . . . . . Effects 24 | . . 4 . . . 20 . Message Errors 4 | . . 1 . . . 3 . Matter Fused 6 | . . 1 . . . 5 . Heat Flow Errors 2 | . . . . . . 2 . Energy Discharges 4 | . . . . . . 4 . Parts Rejected 3 | . . . . . . 3 . Data Loss (minor) 1 | . . 1 . . . . . Data Loss (major) 1 | . . 1 . . . . . Misfires 1 | . . . . . . 1 . Weapon Failures 2 | . . . . . . 2 . Overload Shots . | . . . . . . . . Overflow Damage 95 | . 34 . . 61 . . . Projectiles . | . . . . . . . . Explosions 95 | . 34 . . 61 . . . Melee . | . . . . . . . . Knockbacks . | . . . . . . . . Impact . | . . . . . . . . Kinetic . | . . . . . . . . Secondary . | . . . . . . . . Self-Inflicted Damage 123 | . 123 . . . . . . Shots 4 | . 4 . . . . . . Rammed . | . . . . . . . . Targets Rammed . | . . . . . . . . Kicked . | . . . . . . . . Crushed . | . . . . . . . . Highest Temperature 369 | . 342 . 339 369 24 237 39 Average Temperature 94 | . 83 . 105 134 16 51 18 Received Heat Transfer 1821 | . 258 72 351 468 . 630 42 Effects 10 | . . . 1 9 . . . Energy Bleed 2 | . . . 1 1 . . . Interference 7 | . . . . 7 . . . Matter Decay 1 | . . . . 1 . . . Siege Activations . | . . . . . . . . Martial Activations . | . . . . . . . . Shielding Activations . | . . . . . . . . Robots Disrupted . | . . . . . . . . Combat Hostiles . | . . . . . . . . Robots Corrupted . | . . . . . . . . Combat Hostiles . | . . . . . . . . Parts Fried 3 | . 1 2 . . . . . Impact Corruptions . | . . . . . . . . Robots Melted 2 | . . . . . . 2 . Combat Hostiles 2 | . . . . . . 2 . Parts Melted 13 | . . . 1 5 . 7 . Heat Transferred 9306 | . 350 50 1702 3256 . 3800 148 Parts Sabotaged . | . . . . . . . . Parts Stolen . | . . . . . . . . Parts Stripped . | . . . . . . . . Power Chain Reactions 5 | . 4 1 . . . . . Alert | -11 -10 -10 -8 -8 -8 -8 -7 ------- Run | Yrd Mat Sub Mat Gar Mat Gar Fac Maximum Alert Level 4 | . 1 . . 4 2 3 2 Low Security (%) 36 | 100 88 . 100 6 . . . Level 1 15 | . 11 . . 36 . 4 . Level 2 25 | . . . . 20 100 48 100 Level 3 20 | . . . . 29 . 46 . Level 4 2 | . . . . 7 . . . Level 5 . | . . . . . . . . High Security . | . . . . . . . . Max Security . | . . . . . . . . Peak Influence 1109 | 5 223 . 180 1109 556 997 522 Initial 540 | . . . . 110 540 341 522 Average 419 | 1 133 . 65 558 540 703 473 Influence Increases 3023 | 5 667 50 343 1069 16 826 47 Destroy 0b10 Robot/C 1800 | . 380 40 240 560 . 560 20 Destroy 0b10 Robot/NC 75 | 5 35 . 25 . . . 10 Destroy Leader 218 | . 86 10 52 30 . 30 10 Allied During Kill 21 | . . . . . . 21 . Successful Hack 41 | . 19 . 8 . . 7 7 Select Force Hacks 60 | . 60 . . . . . . Disable Machine 75 | . 15 . 15 30 15 . . Anti-Garrison Action 500 | . . . . 350 . 150 . Destroy Structure 143 | . 12 . 3 69 1 58 . Partial Spotted 15 | . 15 . . . . . . Lose Combat Pursuer 75 | . 45 . . 30 . . . Influence Decreases 2594 | 5 482 235 173 130 599 355 615 Entered New Map 1378 | . . 89 . 60 569 185 475 Time Decay 880 | 5 452 120 133 . 30 . 140 Lost Part 276 | . 30 26 40 70 . 110 . Lost Ally 60 | . . . . . . 60 . Squads Dispatched 8 | . 4 . 4 . . . . Investigation 3 | . 3 . . . . . . Extermination . | . . . . . . . . Reinforcement 2 | . 1 . 1 . . . . Assault . | . . . . . . . . Garrison 3 | . . . 3 . . . . Intercept . | . . . . . . . . Searches Triggered . | . . . . . . . . Construction Impeded 1 | . . . 1 . . . . Haulers Reinforced . | . . . . . . . . Active Scanning Responses . | . . . . . . . . Cargo Convoy Interrupts . | . . . . . . . . Stealth | -11 -10 -10 -8 -8 -8 -8 -7 --------- Run | Yrd Mat Sub Mat Gar Mat Gar Fac Distress Signals . | . . . . . . . . Communications Jammed . | . . . . . . . . Distress Signals . | . . . . . . . . Times Spotted 117 | . 28 8 16 33 . 31 1 Peak Tracking Total 8 | . 4 3 3 6 . 8 1 Tactical Retreats 5 | . 3 . . 2 . . . Traps | -11 -10 -10 -8 -8 -8 -8 -7 ------- Run | Yrd Mat Sub Mat Gar Mat Gar Fac Traps Triggered 3 | . 1 . . 2 . . . Indirectly . | . . . . . . . . Trap Hack Attempts . | . . . . . . . . Triggered . | . . . . . . . . Disarmed . | . . . . . . . . Reprogrammed . | . . . . . . . . Reused . | . . . . . . . . Traps Extracted . | . . . . . . . . Installed . | . . . . . . . . Triggered . | . . . . . . . . Machines | -11 -10 -10 -8 -8 -8 -8 -7 ---------- Run | Yrd Mat Sub Mat Gar Mat Gar Fac Machines Disabled 12 | . 1 . 1 8 1 1 . Max in Single Turn 2 | . 1 . 1 2 1 1 . Garrison Relay 4 | . . . . 3 . 1 . Phase Generator 1 | . . . . 1 . . . Machines Repaired . | . . . . . . . . Machines Dismantled . | . . . . . . . . Machines Sabotaged . | . . . . . . . . Overloaded Fab Kills . | . . . . . . . . Hacking | -11 -10 -10 -8 -8 -8 -8 -7 --------- Run | Yrd Mat Sub Mat Gar Mat Gar Fac Machines Accessed 17 | . 6 . 2 3 1 3 2 Terminals 12 | . 4 . 1 3 . 3 1 Fabricators 1 | . . . . . . . 1 Repair Stations . | . . . . . . . . Recycling Units 2 | . 2 . . . . . . Scanalyzers . | . . . . . . . . Garrison Access 2 | . . . 1 . 1 . . Total Hacks 32 | . 15 . 5 4 1 5 2 Successful 13 | . 7 . 2 1 1 1 1 Failed 19 | . 8 . 3 3 . 4 1 Catastrophic 3 | . 1 . . 1 . . 1 Database Lockouts . | . . . . . . . . Manual 12 | . 10 . 2 . . . . Terminals 27 | . 13 . 4 4 . 5 1 Fabricators 1 | . . . . . . . 1 Repair Stations . | . . . . . . . . Recycling Units 2 | . 2 . . . . . . Scanalyzers . | . . . . . . . . Garrison Access 2 | . . . 1 . 1 . . Terminal Hacks 6 | . 2 . 1 1 . 1 1 Open Door 2 | . . . . 1 . 1 . Branch Access Points 2 | . . . 1 . . . 1 Terminal Index 1 | . 1 . . . . . . Registered Components 1 | . 1 . . . . . . Fabricator Hacks . | . . . . . . . . Repair Station Hacks . | . . . . . . . . Recycling Unit Hacks . | . . . . . . . . Scanalyzer . | . . . . . . . . Garrison Access Hacks 2 | . . . 1 . 1 . . Unlock Access 2 | . . . 1 . 1 . . Unauthorized Hacks 5 | . 5 . . . . . . Terminals 3 | . 3 . . . . . . Botnet 1 | . 1 . . . . . . Skim 2 | . 2 . . . . . . Fabricators . | . . . . . . . . Repair Stations . | . . . . . . . . Recycling Units 2 | . 2 . . . . . . Tunnel 2 | . 2 . . . . . . Scanalyzers . | . . . . . . . . Garrison Access . | . . . . . . . . Data Cores Recovered . | . . . . . . . . Used . | . . . . . . . . Hacking Detections 10 | . 4 . 1 2 . 2 1 Full Trace Events 3 | . . . . 1 . 2 . Feedback Events . | . . . . . . . . Feedback Blocked . | . . . . . . . . Robot Schematics Acquired . | . . . . . . . . Robots Built . | . . . . . . . . Authchips . | . . . . . . . . Time . | . . . . . . . . Total Robot Build Rating . | . . . . . . . . Part Schematics Acquired . | . . . . . . . . Parts Built . | . . . . . . . . Authchips . | . . . . . . . . Time . | . . . . . . . . Total Part Build Rating . | . . . . . . . . Part Studies Acquired . | . . . . . . . . Parts Repaired . | . . . . . . . . Time . | . . . . . . . . Parts Recycled . | . . . . . . . . Recycled Matter . | . . . . . . . . Retrieved Matter . | . . . . . . . . Retrieved Components . | . . . . . . . . Parts Scanalyzed . | . . . . . . . . Part Schematics Acquired . | . . . . . . . . Parts Damaged . | . . . . . . . . Bothacking | -11 -10 -10 -8 -8 -8 -8 -7 ------------ Run | Yrd Mat Sub Mat Gar Mat Gar Fac Used RIF Installer 2 | . . . . 1 . 1 . Watcher Feeds 1 | . . . . . . 1 . Robots Hacked . | . . . . . . . . Non-combat . | . . . . . . . . Combat . | . . . . . . . . Robot Hacks Applied . | . . . . . . . . Relay Couplers Released 16 | . . . . 12 . 4 . Machine Destruction 16 | . . . . 12 . 4 . Fabnet Peak Effective % . | . . . . . . . . Robots Rewired . | . . . . . . . . Allies Hacked 1 | . . . . . . 1 . Hacks Repelled . | . . . . . . . . Allies | -11 -10 -10 -8 -8 -8 -8 -7 -------- Run | Yrd Mat Sub Mat Gar Mat Gar Fac Total Allies 3 | . . . . 2 . 1 . Largest Group 2 | . . . . 2 2 2 . Highest-Rated Group 70 | . . . . 70 70 70 . Highest-Rated Ally 39 | . . . . 39 39 39 . Total Orders . | . . . . . . . . Ally Attacks 28 | . . . . . . 28 . Total Damage 427 | . . . . . . 427 . Kills 4 | . . . . . . 4 . Allies Corrupted 1 | . . . . . . 1 . Allies Melted . | . . . . . . . . Intel | -11 -10 -10 -8 -8 -8 -8 -7 ------- Run | Yrd Mat Sub Mat Gar Mat Gar Fac Active Infowar (turns) 2772 | 19 1014 231 264 967 . . 277 Sensors 277 | . . . . . . . 277 Seismic 2495 | 19 1014 231 264 967 . . . Robot Analysis Total . | . . . . . . . . Derelict Logs Recovered . | . . . . . . . . Drone Launches . | . . . . . . . . Drone Recoveries . | . . . . . . . . Exploration | -11 -10 -10 -8 -8 -8 -8 -7 ------------- Run | Yrd Mat Sub Mat Gar Mat Gar Fac Turns Passed 4822 | 68 1231 417 362 1338 64 1056 286 Spaces Moved 2510 | 48 723 219 123 710 36 500 151 Core 1 | 1 . . . . . . . Treads 1151 | . 1 14 . 449 36 500 151 Legs . | . . . . . . . . Wheels 1358 | 47 722 205 123 261 . . . Hover . | . . . . . . . . Flight . | . . . . . . . . Fastest Speed 50 | 50 95 115 130 130 160 160 160 Average Speed 137 | 90 110 129 133 149 160 160 160 Slowest Speed 240 | 95 240 240 145 240 160 160 160 Overloaded Moves . | . . . . . . . . Propulsion Burnouts . | . . . . . . . . Robots Hopped . | . . . . . . . . Potential Cave-ins . | . . . . . . . . Cave-ins Triggered . | . . . . . . . . Exploration Rate (%) 34 | 3 67 15 14 92 6 70 5 Regions Visited 7 Branch Regions 1 Pre-discovered Areas 2 | . 2 . . . . . . Known Exits Taken 2 | . . . 1 . 1 . . Unknown Exits Taken 3 | 1 1 1 . . . . . Scrap Searched . | . . . . . . . . Spaces Dug 2 | . 2 . . . . . . Terrain Destroyed 133 | . 16 2 2 100 . 13 . Melee . | . . . . . . . . Projectile 6 | . 4 . 2 . . . . AOE 127 | . 12 2 . 100 . 13 . Terrain Rammed . | . . . . . . . . Walls Destroyed . | . . . . . . . . Machines Disabled . | . . . . . . . . Actions | -11 -10 -10 -8 -8 -8 -8 -7 --------- Run | Yrd Mat Sub Mat Gar Mat Gar Fac Total 3313 | 65 1014 296 231 851 41 625 190 Wait 275 | 1 175 35 28 18 . 14 4 Move 2504 | 47 722 218 122 709 36 499 151 Hop . | . . . . . . . . Pick Up 91 | 8 23 3 15 18 2 13 9 Fast Attach 18 | 7 . 1 3 4 . 1 2 Attach 36 | . 3 5 6 6 . 13 3 Detach 1 | . . . . . . 1 . Swap 50 | . 13 7 3 14 . 8 5 Drop 63 | . 15 . 11 15 2 8 12 Fire 275 | 2 63 27 43 67 1 68 4 Melee . | . . . . . . . . Ram . | . . . . . . . . Kick . | . . . . . . . . Crush . | . . . . . . . . Escape Stasis . | . . . . . . . . Rewire . | . . . . . . . . Trap . | . . . . . . . . Miscellaneous . | . . . . . . . . Route ------- -11/Scrapyard -10/Materials (discovered 4 exits: [*Mat] / [*Min x2] / [*Sub]) -10/Subcaves (discovered 2 exits: *Mat x2) -8/Materials -8/Garrison (discovered 3 exits: *Mat x3) -8/Materials -8/Garrison (discovered 2 exits: *Fac x2) -7/Factory (discovered 2 exits: Low x2) History --------- Turn | Location | Event 26 | -11/Scrapyard | Discovered new exit (range 15) 69 | -11/Scrapyard | Entered Materials 243 | -10/Materials | Discovered new exit (range 11) 312 | -10/Materials | Build established: Mutant 596 | -10/Materials | Discovered new exit (range 4) 748 | -10/Materials | Discovered new exit (range 11) 1290 | -10/Materials | Discovered new exit (range 9) 1300 | -10/Materials | Entered Subcaves 1519 | -10/Subcaves | Discovered new exit (range 8) 1542 | -10/Subcaves | Core integrity fell below 50% 1592 | -10/Subcaves | Lost 3 parts (1p2w) 1600 | -10/Subcaves | Discovered new exit (range 4) 1661 | -10/Subcaves | Core integrity fell below 20% 1717 | -10/Subcaves | Entered Materials 1717 | -8/Materials | Evolved 4 slots: Propulsion x1, Utility x2, Weapon x1 1839 | -8/Materials | Garrison activated, responded to threat 1900 | -8/Materials | Identified exit to Garrison 2014 | -8/Materials | Build established: Scavenger-Tank 2035 | -8/Materials | Lost 3 parts (1n1u1w) 2079 | -8/Materials | Entered Garrison 2163 | -8/Garrison | Phase Generator disabled 2227 | -8/Garrison | Triggered checkpoint 2323 | -8/Garrison | Triggered checkpoint 2415 | -8/Garrison | Discovered new exit (range 11) 2461 | -8/Garrison | Triggered checkpoint 2635 | -8/Garrison | Triggered checkpoint 2737 | -8/Garrison | Discovered new exit (range 10) 2771 | -8/Garrison | Garrison Relay disabled 2782 | -8/Garrison | Garrison Relay disabled 2798 | -8/Garrison | Garrison Relay disabled 2917 | -8/Garrison | Triggered checkpoint 3116 | -8/Garrison | Triggered checkpoint 3136 | -8/Garrison | Core integrity fell below 50% 3266 | -8/Garrison | Triggered checkpoint 3305 | -8/Garrison | Lost 3 parts (2n1w) 3333 | -8/Garrison | Discovered new exit (range 12) 3343 | -8/Garrison | Rescued a captive Derelict 3345 | -8/Garrison | Rescued a captive Derelict 3392 | -8/Garrison | Installed Relay Interface Framework 3417 | -8/Garrison | Entered Materials 3417 | -8/Materials | Accompanied by 2 allies 3481 | -8/Materials | Identified exit to Garrison 3481 | -8/Materials | Entered Garrison 3481 | -8/Garrison | Accompanied by 2 allies 3533 | -8/Garrison | Triggered checkpoint 3653 | -8/Garrison | Rescued a captive Derelict 3749 | -8/Garrison | Triggered checkpoint 3761 | -8/Garrison | Triggered checkpoint 3762 | -8/Garrison | Triggered checkpoint 3831 | -8/Garrison | Lost 3 parts (1p2n) 3939 | -8/Garrison | Discovered new exit (range 15) 4065 | -8/Garrison | Triggered checkpoint 4186 | -8/Garrison | Discovered new exit (range 15) 4217 | -8/Garrison | Core integrity fell below 20% 4364 | -8/Garrison | Lost 3 parts (1p1u1w) 4408 | -8/Garrison | Expanded RIF knowledge: Watcher Feeds 4435 | -8/Garrison | Garrison Relay disabled 4537 | -8/Garrison | Entered Factory 4537 | -7/Factory | Evolved 2 slots: Propulsion x1, Utility x1 4823 | -7/Factory | Identified exit to Lower Caves 4823 | -7/Factory | Self-destructed Last Messages --------------- 04741_ K-01 Serf collects debris. 04756_ R-06 Scavenger collects Lgt. Treads. 04764_ R-06 Scavenger collects Imp. Heat Sink. 04767_ R-06 Scavenger collects Tractor Beam. 04770_ K-01 Serf collects debris. 04799_ K-01 Serf cleans the Manufacturing Mainframe. 04804_ Dropped Particle Gun. 04805_ Acquired Prototype Ballistic Cannon. 04805_ Identified Mni. Assault Cannon. 04806_ Dropped Mni. Assault Cannon. 04808_ Acquired Particle Gun. 04811_ Dropped Transmission Jammer. 04812_ Acquired Mni. Assault Cannon. 04823_ Connecting with Terminal... >>Access(Branch) Found 2 branch access points: (166,52) Lower Caves (69,123) Lower Caves Map updated. Map ----- +----------------------------------------------------+ | ??????????????????? !% +% = # | | ??????????????????? = ###### #! = ]! # | | ????????????????????? ?????????# ########### | | ???????????????????????????????# #????????? | | ???????????????????????????????# #????????? | | ???????????????????????????????# ######???? | | ???????????????????????????????# # #???? | | ???????????????????????????????# # #???? | | ???????????????????????#?####### # #???? | | ??????????????????????? ? # # #???? | | ???????????????????????" """" # # #???? | | ???????????????????????" """" # #???? | | ??????????????????????"" """" # #???? | | ??????????????????# """" """" # #???? | | ???????????????????? # ####+###### #???? | | ??????????????????# """" """" + # #?# #???? | | ??????????????????# """" """" # #% =#?# #???? | | ??????????????????# """" """" # # #?# #???? | | ??????????????????# """" """" # # "Y" #?# #???? | | ??????????????????# ! # # """ #?# #???? | | ??????????????????# # ###########+##### | | ??????????????????#######+######k ???+ ^ # | | ???????????#####+#### ## ?? # """ """ # | | ????????? u r ## # """ """ # | | ????????? # """ """ # | | ????????? @ # # | | ?????????? T + # | | ?????????? # # | | ??????????? k # """ ]] # | | ??????????? ###### # ""F ] # | | ???????????########## #??????# "" *# | | ????????????????????###k ###??????# """ # | | ??????????????????????# #????????# """ # | | ??????????????????????# #????????# # | | ??????????????????????# #??????#+####+######## | | ??????????????????????# ######## #????? | | ??????????????????????# # #????? | | ??????????????????????# # #????? | | ????????????????? # ! #????? | | ????????????????? + #????? | | ????????????????? # #????? | | ?????????????????? # #????? | | ?????????????????? # ! #????? | | ??????????????????? ############### #????? | | ???????????????????????????????????##########????? | | ?????????????????????????????????????????????????? | | ?????????????????????????????????????????????????? | | ?????????????????????????????????????????????????? | | ?????????????????????????????????????????????????? | | ?????????????????????????????????????????????????? | +----------------------------------------------------+ Best States ------------- Heat Dissipation 62 Energy Generation 16 Energy Capacity 290 Matter Stores 300 Matter Capacity 300 Sight Range 16 Robot Scan Range 15 Terrain Scan Density 10 Armor Coverage 375 Evasion (%) 44 Recoil Reduction 4 Particle Charging 15 Item Schematics ----------------- None Robot Schematics ------------------ None Fabricated ------------ Nothing Repaired ---------- Nothing Studied --------- None Alien Tech Used ----------------- None Achievements -------------- None Challenges ------------ None Game ------ Seed TransportCommGriptreads Manual? 0 Play Time 00:44:04 Cumulative 429.7 hours Start 2026.08.19 @ 08:39:48 End 2026.08.19 @ 15:09:28 Sessions 2 Manual Loads 0 Difficulty Rogue Special Mode None Game No. 255 Rogue 230 Adventurer 25 Explorer 0 Win Type - Total 14 Types 9/0/3/1/0/0/0/1/0/0 Lore% 86 Gallery% 69 Achievement% 65 Wizard Run 0 Options --------- Layout 1 ASCII 0 Keyboard 0 Movement Mouse Keybinds 0 Fullscreen 2 Font 24/Smallcaps Map View 50x40 Zoom Use 0% Tactical HUD 1 Map Filters NONE Filters NONE Steam 1 RUN: 0c5e185b-dee6-4f95-801d-7dc10767f5d1